fUST/lending_fUST_20250811
["ID","MTS","AMOUNT","RATE_DAILY","PERIOD"]
[378520559,1754892906115,421.04,0.00031306,30]
[378520560,1754892906586,460.0,0.00031306,30]
[378520561,1754892907394,460.0,0.00031306,30]
[378520562,1754892907973,460.0,0.00031306,30]
[378520563,1754892908349,460.0,0.00031306,30]
[378520564,1754892908746,460.0,0.00031306,30]
[378520565,1754892909867,460.0,0.00031306,30]
[378520566,1754892910486,460.0,0.00031306,30]
[378520567,1754892910956,460.0,0.00031306,30]
[378520568,1754892911287,460.0,0.00031306,30]
[378520569,1754892911578,460.0,0.00031306,30]
[378520570,1754892912001,460.0,0.00031306,30]
[378520571,1754892912407,460.0,0.00031306,30]
[378520572,1754892912611,369.03185823,0.00031306,30]
[378520573,1754892927951,460.0,0.00031306,30]
[378520574,1754892928595,460.0,0.00031306,30]
[378520575,1754892929590,542.46,0.00031306,30]
[378520576,1754892946532,168.00340122,0.00031306,30]
[378520577,1754892979052,460.0,0.00031306,30]
[378520578,1754892979710,460.0,0.00031306,30]
[378520579,1754892980342,374.94,0.00031306,30]
[378520581,1754893039097,460.0,0.00031306,30]
[378520582,1754893039498,150.58548075,0.00031306,30]
[378520583,1754893044824,460.0,0.00031306,30]
[378520584,1754893045235,460.0,0.00031306,30]
[378520585,1754893045705,460.0,0.00031306,30]
[378520586,1754893046132,460.0,0.00031306,30]
[378520587,1754893046494,460.0,0.00031306,30]
[378520588,1754893047184,460.0,0.00031306,30]
[378520589,1754893048577,446.32,0.00031306,30]
[378520590,1754893070792,357.34362435,0.00031306,30]
[378520591,1754893098168,460.0,0.00031306,30]
[378520594,1754893117624,460.0,0.00031306,30]
[378520595,1754893117860,453.0435784,0.00031306,30]
[378520596,1754893158974,460.0,0.00031313,30]
[378520597,1754893159413,488.14,0.00031313,30]
[378520598,1754893165295,460.0,0.00031313,30]
[378520599,1754893165495,-4205.3743314,0.000199,2]
[378520600,1754893165680,226.69,0.00031313,30]
[378520601,1754893239567,460.0,0.00031313,30]
[378520602,1754893256233,166.11,0.00031313,30]
[378520603,1754893274683,4002.95959268,0.000199,2]
[378520604,1754893323724,460.0,0.00031313,30]
[378520605,1754893323834,460.0,0.00031313,30]
[378520606,1754893324636,460.0,0.00031313,30]
[378520607,1754893325655,460.0,0.00031313,30]
[378520608,1754893326423,460.0,0.00031313,30]
[378520609,1754893327320,460.0,0.00031313,30]
[378520610,1754893328029,485.68,0.00031313,30]
[378520611,1754893391618,162.723389,0.00013699,2]
[378520613,1754893420993,460.0,0.00031313,30]
[378520614,1754893455515,3869.52760618,0.000199,2]
[378520615,1754893542788,10000.0,0.00031313,30]
[378520628,1754893649071,3554.04074934,0.000199,2]
[378520629,1754893649099,187.53315476,0.000199,2]
[378520647,1754893721063,227.800006,0.0002,120]
[378520662,1754893796132,7338.72,0.00031313,30]
[378520708,1754893832097,-2400.0,0.0002,10]
[378520710,1754893832108,-160.0,0.0002,3]
[378520711,1754893832118,-3057.95028002,0.0002079,2]
[378520714,1754893832130,-727.76760405,0.0002079,2]
[378520744,1754893838017,-1214.28211593,0.0002079,2]
[378520746,1754893838026,-681.64353406,0.00021,10]
[378520748,1754893838037,-1077.64062065,0.00021,2]
[378520750,1754893838046,-202.87297087,0.00021,2]
[378520752,1754893838056,-151.0,0.00021161,2]
[378520754,1754893838065,-151.0,0.00021161,2]
[378520756,1754893838075,-229.54265378,0.00021161,2]
[378520759,1754893838084,-3051.25318391,0.00021173,2]
[378520761,1754893838093,-500.0,0.00021174,2]
[378520763,1754893838102,-500.0,0.00021186,2]
[378520764,1754893838113,-500.0,0.00021197,2]
[378520766,1754893838122,-500.0,0.00021197,2]
[378520768,1754893838132,-500.0,0.00021197,2]
[378520770,1754893838141,-500.0,0.00021197,2]
[378520772,1754893838150,-500.0,0.00021197,2]
[378520774,1754893838159,-500.0,0.00021197,2]
[378520777,1754893838168,-500.0,0.00021197,2]
[378520778,1754893838177,-500.0,0.00021197,2]
[378520780,1754893838187,-500.0,0.00021197,2]
[378520783,1754893838196,-396.78971984,0.00021197,2]
[378520785,1754893838206,-500.0,0.00021197,2]
[378520787,1754893838216,-500.0,0.00021197,2]
[378520789,1754893838225,-235.69415556,0.00021197,2]
[378520791,1754893838235,-500.0,0.00021197,2]
[378520793,1754893838245,-608.01028163,0.00021197,2]
[378520795,1754893838255,-500.0,0.00021197,2]
[378520797,1754893838264,-500.0,0.00021197,2]
[378520799,1754893838274,-500.0,0.00021197,2]
[378520801,1754893838283,-500.0,0.00021197,2]
[378520803,1754893838292,-500.0,0.00021197,2]
[378520805,1754893838301,-500.0,0.00021197,2]
[378520807,1754893838310,-500.0,0.00021197,2]
[378520809,1754893838320,-365.28982445,0.00021197,2]
[378520811,1754893838329,-500.0,0.00021197,2]
[378520813,1754893838339,-500.0,0.00021197,2]
[378520815,1754893838348,-500.0,0.00021197,2]
[378520817,1754893838358,-500.0,0.00021197,2]
[378520819,1754893838368,-629.30545812,0.00021197,2]
[378520821,1754893838377,-500.0,0.00021197,2]
[378520823,1754893838386,-500.0,0.00021197,2]
[378520825,1754893838395,-500.0,0.00021197,2]
[378520827,1754893838404,-500.0,0.00021197,2]
[378520829,1754893838414,-625.798775,0.00021197,2]
[378520831,1754893838423,-500.0,0.00021197,2]
[378520833,1754893838431,-500.0,0.00021197,2]
[378520834,1754893838440,-500.0,0.00021197,2]
[378520835,1754893838451,-160.0,0.00021198,2]
[378520836,1754893838460,-160.0,0.00021198,2]
[378520837,1754893838470,-417.15472785,0.00021198,2]
[378520838,1754893838480,-12671.21867243,0.00021198,2]
[378520839,1754893838489,-215.4905783,0.00021198,2]
[378520840,1754893838498,-461.69158338,0.00021198,2]
[378520841,1754893838508,-160.0,0.00021198,2]
[378520842,1754893838518,-160.0,0.00021198,2]
[378520843,1754893838528,-160.0,0.00021198,2]
[378520844,1754893838540,-843.18994796,0.00021198,2]
[378520845,1754893838550,-160.0,0.00021198,2]
[378520846,1754893838560,-231.9940742,0.00021198,2]
[378520847,1754893838570,-527.9539256,0.00021198,2]
[378520848,1754893838584,-216.68257536,0.00021198,2]
[378520849,1754893838595,-160.0,0.00021198,2]
[378520850,1754893838605,-160.0,0.00021203,2]
[378520851,1754893838616,-500.0,0.00021325,2]
[378520853,1754893838626,-500.0,0.00021325,2]
[378520854,1754893838636,-500.0,0.00021325,2]
[378520856,1754893838645,-240.15173798,0.00021325,2]
[378520858,1754893838654,-246.98514111,0.00021342,4]
[378520860,1754893838665,-500.0,0.00021383,2]
[378520862,1754893838674,-500.0,0.00021383,2]
[378520865,1754893838693,-500.0,0.00021383,2]
[378520867,1754893838704,-500.0,0.00021383,2]
[378520870,1754893838716,-370.4,0.00021417,2]
[378520872,1754893838726,-200.0,0.00021419,15]
[378520874,1754893838736,-200.0,0.00021419,15]
[378520876,1754893838747,-200.0,0.00021419,15]
[378520877,1754893838758,-200.0,0.00021419,15]
[378520880,1754893838767,-200.0,0.00021419,15]
[378520882,1754893838778,-1000.0,0.00021734,2]
[378520884,1754893838789,-370.4,0.00021734,2]
[378520886,1754893838799,-6715.95391468,0.0002178,2]
[378520888,1754893838808,-1000.0,0.00021873,2]
[378520890,1754893838818,-1000.0,0.00021873,2]
[378520892,1754893838828,-1112.23277963,0.00021873,2]
[378520894,1754893838837,-504.06570944,0.00021931,2]
[378520896,1754893838847,-1000.0,0.00021931,2]
[378520898,1754893838857,-500.0,0.00021931,2]
[378520900,1754893838867,-500.0,0.00021931,2]
[378520902,1754893838877,-192.0,0.00022,2]
[378520904,1754893838887,-370.4,0.0002205,2]
[378520906,1754893838897,-192.0,0.00022192,7]
[378520908,1754893838906,-512.65551404,0.00022281,2]
[378520910,1754893838916,-500.0,0.00022281,2]
[378520912,1754893838926,-1500.0,0.00022282,2]
[378520914,1754893838936,-527.92536643,0.000223,2]
[378520916,1754893838946,-564.85196235,0.000223,2]
[378520918,1754893838956,-280.65641991,0.000223,2]
[378520920,1754893838966,-500.01149763,0.000223,2]
[378520922,1754893838976,-500.0,0.000223,2]
[378520924,1754893838986,-370.4,0.00022367,2]
[378520926,1754893838996,-1500.0,0.00022421,2]
[378520928,1754893839005,-1500.0,0.00022479,2]
[378520930,1754893839015,-298.58387,0.00022518,2]
[378520932,1754893839025,-370.4,0.00022684,2]
[378520934,1754893839035,-500.0,0.00022829,2]
[378520936,1754893839044,-2000.0,0.0002283,2]
[378520938,1754893839054,-618.4586846,0.00022848,2]
[378520940,1754893839063,-1511.0,0.00022863,2]
[378520942,1754893839074,-1321.88911746,0.00022889,2]
[378520944,1754893839084,-1511.0,0.00022893,2]
[378520946,1754893839094,-610.18574959,0.00022969,2]
[378520948,1754893839104,-9254.42,0.00022978,2]
[378520950,1754893839116,-3395.42,0.00022979,10]
[378520952,1754893839126,-12671.21867243,0.00022979,10]
[378520954,1754893839136,-491.73,0.0002298,3]
[378520956,1754893839147,-245.86,0.0002298,3]
[378520958,1754893839156,-737.61,0.0002298,3]
[378520961,1754893839167,-500.0,0.00022989,2]
[378520963,1754893839177,-1832.74807836,0.00022989,2]
[378520965,1754893839187,-198.52843916,0.00022989,2]
[378520967,1754893839197,-1832.74807836,0.00022989,2]
[378520968,1754893839206,-1832.74807836,0.00022989,2]
[378520970,1754893839216,-1832.74807836,0.00022989,2]
[378520972,1754893839226,-1832.74807836,0.00022989,2]
[378520974,1754893839236,-1832.74807836,0.00022989,2]
[378520976,1754893839245,-1832.74807836,0.00022989,2]
[378520978,1754893839256,-1832.74807836,0.00022989,2]
[378520980,1754893839265,-1832.74807836,0.00022989,2]
[378520982,1754893839275,-1832.74807836,0.00022989,2]
[378520984,1754893839284,-1832.74807836,0.00022989,2]
[378520986,1754893839294,-1832.74807836,0.00022989,2]
[378520988,1754893839304,-1832.74807836,0.00022989,2]
[378520990,1754893839315,-1832.74807836,0.00022989,2]
[378520992,1754893839325,-1832.74807836,0.00022989,2]
[378520994,1754893839335,-1832.74807836,0.00022989,2]
[378520996,1754893839346,-1832.74807836,0.00022989,2]
[378520998,1754893839357,-1845.83913607,0.00022989,2]
[378521000,1754893839367,-1845.83913607,0.00022989,2]
[378521002,1754893839377,-1845.83913607,0.00022989,2]
[378521004,1754893839387,-1845.83913607,0.00022989,2]
[378521008,1754893839397,-1845.83913607,0.00022989,2]
[378521010,1754893839406,-1845.83913607,0.00022989,2]
[378521013,1754893839416,-1845.83913607,0.00022989,2]
[378521015,1754893839425,-1845.83913607,0.00022989,2]
[378521017,1754893839434,-1845.83913607,0.00022989,2]
[378521019,1754893839444,-1845.83913607,0.00022989,2]
[378521021,1754893839454,-1845.83913607,0.00022989,2]
[378521023,1754893839464,-2012.71045191,0.00022989,2]
[378521025,1754893839473,-2012.71045191,0.00022989,2]
[378521027,1754893839483,-2012.71045191,0.00022989,2]
[378521029,1754893839492,-2012.71045191,0.00022989,2]
[378521031,1754893839501,-2012.71045191,0.00022989,2]
[378521033,1754893839511,-2012.71045191,0.00022989,2]
[378521035,1754893839520,-24231.00654115,0.0002299,2]
[378521058,1754893839748,-16365.32514373,0.0002299,2]
[378521060,1754893839763,-43122.68815287,0.0002299,2]
[378521076,1754893839919,-1011.79502801,0.0002299,2]
[378521086,1754893840010,-671.77936835,0.0002299,2]
[378521089,1754893840029,-1073.00354238,0.0002299,2]
[378521341,1754893842968,-2829.52,0.0002298,10]
[378521344,1754893842978,-9542.480002,0.0002299,2]
[378521580,1754893848625,3509.59874176,0.000199,2]
[378521581,1754894007312,460.0,0.00031313,30]
[378521582,1754894007733,253.20248681,0.00031313,30]
[378521583,1754894018080,460.0,0.00031313,30]
[378521584,1754894018345,354.42,0.00031313,30]
[378521585,1754894020264,460.0,0.00031313,30]
[378521586,1754894020512,460.0,0.00031313,30]
[378521587,1754894033566,3261.12487703,0.000199,2]
[378521590,1754894224434,3156.81845029,0.000199,2]
[378521591,1754894257122,191.23939905,0.00031323,30]
[378521592,1754894259066,460.0,0.00031323,30]
[378521593,1754894259314,460.0,0.00031323,30]
[378521594,1754894308174,464.971425,0.00031323,30]
[378521595,1754894397363,162.723389,0.00013699,2]
[378521598,1754894408516,3051.59116843,0.000199,2]
[378521599,1754894427391,460.0,0.00031341,30]
[378521600,1754894493433,578.25243113,0.00031341,30]
[378521601,1754894597658,2949.87146298,0.000199,2]
[378521602,1754894758324,460.0,0.00031342,30]
[378521603,1754894758542,460.0,0.00031342,30]
[378521604,1754894758852,460.0,0.00031342,30]
[378521605,1754894759129,524.85364328,0.00031342,30]
[378521606,1754894788804,2845.65934305,0.000199,2]
[378521616,1754894968931,875.0794127,0.000199,2]
[378521617,1754894968959,1875.72461906,0.000199,2]
[378521622,1754895032196,-160.0,0.0002,3]
[378521623,1754895032206,-8840.87608352,0.00020612,2]
[378521624,1754895032215,-158.98514111,0.00020712,3]
[378521625,1754895032225,-8840.8760835,0.00020736,2]
[378521626,1754895032234,-5000.0,0.0002096,2]
[378521627,1754895032243,-151.0,0.00021167,2]
[378521628,1754895032253,-151.0,0.00021167,2]
[378521629,1754895032262,-151.0,0.00021167,2]
[378521630,1754895032271,-151.0,0.00021167,2]
[378521631,1754895032280,-151.0,0.00021167,2]
[378521632,1754895032289,-151.0,0.00021167,2]
[378521633,1754895032298,-151.0,0.00021167,2]
[378521634,1754895032307,-151.0,0.00021167,2]
[378521635,1754895032316,-151.0,0.00021167,2]
[378521636,1754895032325,-250.0,0.00021167,2]
[378521637,1754895032334,-151.0,0.00021167,2]
[378521638,1754895032343,-250.0,0.00021167,2]
[378521639,1754895032352,-151.0,0.00021167,2]
[378521640,1754895032361,-250.0,0.00021167,2]
[378521641,1754895032371,-151.0,0.00021167,2]
[378521642,1754895032380,-151.0,0.00021167,2]
[378521643,1754895032389,-151.0,0.00021167,2]
[378521644,1754895032398,-151.0,0.00021167,2]
[378521645,1754895032408,-151.0,0.00021167,2]
[378521646,1754895032418,-151.0,0.00021167,2]
[378521647,1754895032428,-151.0,0.00021167,2]
[378521649,1754895032437,-151.0,0.00021167,2]
[378521651,1754895032447,-151.0,0.00021167,2]
[378521653,1754895032456,-3459.22,0.00021168,10]
[378521655,1754895032465,-2882.68,0.00021168,10]
[378521657,1754895032474,-1177.0,0.00021171,2]
[378521659,1754895032483,-300.0,0.00021172,2]
[378521661,1754895032493,-500.0,0.00021173,2]
[378521663,1754895032502,-500.0,0.00021173,2]
[378521664,1754895032511,-500.0,0.00021173,2]
[378521666,1754895032521,-500.01149763,0.00021173,2]
[378521668,1754895032530,-500.0,0.00021173,2]
[378521670,1754895032539,-527.92536643,0.00021173,2]
[378521672,1754895032548,-1200.0,0.00021178,2]
[378521674,1754895032558,-500.0,0.00021178,2]
[378521676,1754895032567,-500.0,0.00021178,2]
[378521678,1754895032577,-500.0,0.00021178,2]
[378521680,1754895032586,-500.0,0.00021178,2]
[378521682,1754895032596,-500.0,0.00021178,2]
[378521684,1754895032605,-231.2499699,0.00021178,2]
[378521686,1754895032614,-357.24567141,0.00021178,2]
[378521688,1754895032623,-500.0,0.00021178,2]
[378521690,1754895032632,-500.0,0.00021178,2]
[378521692,1754895032641,-416.0,0.00021178,2]
[378521694,1754895032650,-500.0,0.00021178,2]
[378521695,1754895032659,-500.0,0.00021178,2]
[378521697,1754895032668,-500.0,0.00021178,2]
[378521699,1754895032677,-215.57650049,0.00021178,2]
[378521701,1754895032687,-500.0,0.00021178,2]
[378521703,1754895032696,-500.0,0.00021178,2]
[378521705,1754895032705,-500.0,0.00021178,2]
[378521707,1754895032714,-500.0,0.00021178,2]
[378521709,1754895032723,-500.0,0.00021178,2]
[378521711,1754895032732,-500.0,0.00021178,2]
[378521713,1754895032741,-500.0,0.00021178,2]
[378521715,1754895032750,-500.0,0.00021178,2]
[378521717,1754895032759,-500.0,0.00021178,2]
[378521719,1754895032769,-500.0,0.00021178,2]
[378521721,1754895032780,-500.0,0.00021178,2]
[378521723,1754895032789,-500.0,0.00021178,2]
[378521725,1754895032799,-500.0,0.00021178,2]
[378521727,1754895032808,-500.0,0.00021178,2]
[378521729,1754895032817,-500.0,0.00021178,2]
[378521731,1754895032827,-500.0,0.00021178,2]
[378521733,1754895032837,-500.0,0.00021178,2]
[378521735,1754895032847,-415.27258888,0.00021178,2]
[378521737,1754895032856,-500.0,0.00021178,2]
[378521739,1754895032865,-500.0,0.00021178,2]
[378521741,1754895032875,-500.0,0.00021178,2]
[378521743,1754895032884,-622.07507103,0.00021178,2]
[378521745,1754895032894,-500.0,0.00021178,2]
[378521747,1754895032904,-500.0,0.00021178,2]
[378521749,1754895032914,-500.0,0.00021178,2]
[378521751,1754895032923,-500.0,0.00021178,2]
[378521753,1754895032933,-500.0,0.00021178,2]
[378521755,1754895032944,-500.0,0.00021178,2]
[378521757,1754895032955,-500.0,0.00021178,2]
[378521758,1754895032965,-500.0,0.00021178,2]
[378521760,1754895032975,-500.0,0.00021178,2]
[378521762,1754895032984,-500.0,0.00021178,2]
[378521764,1754895032995,-500.0,0.00021178,2]
[378521766,1754895033005,-500.0,0.00021178,2]
[378521768,1754895033014,-500.0,0.00021178,2]
[378521770,1754895033027,-500.0,0.00021178,2]
[378521772,1754895033037,-500.0,0.00021178,2]
[378521774,1754895033047,-500.0,0.00021178,2]
[378521776,1754895033058,-500.0,0.00021178,2]
[378521778,1754895033068,-500.0,0.00021178,2]
[378521780,1754895033077,-500.0,0.00021178,2]
[378521782,1754895033087,-500.0,0.00021178,2]
[378521784,1754895033096,-500.0,0.00021178,2]
[378521786,1754895033108,-500.0,0.00021178,2]
[378521788,1754895033120,-500.0,0.00021178,2]
[378521790,1754895033129,-544.54096616,0.00021178,2]
[378521791,1754895033139,-500.0,0.00021178,2]
[378521792,1754895033148,-500.0,0.00021178,2]
[378521793,1754895033157,-500.0,0.00021178,2]
[378521794,1754895033167,-500.0,0.00021178,2]
[378521795,1754895033176,-500.0,0.00021178,2]
[378521797,1754895033185,-500.0,0.00021178,2]
[378521799,1754895033195,-500.0,0.00021178,2]
[378521800,1754895033205,-500.0,0.00021178,2]
[378521801,1754895033214,-500.0,0.00021178,2]
[378521803,1754895033224,-500.0,0.00021178,2]
[378521805,1754895033234,-500.0,0.00021178,2]
[378521806,1754895033243,-500.0,0.00021178,2]
[378521808,1754895033253,-500.0,0.00021178,2]
[378521810,1754895033262,-500.0,0.00021178,2]
[378521812,1754895033271,-500.0,0.00021178,2]
[378521814,1754895033280,-500.0,0.00021178,2]
[378521816,1754895033290,-500.0,0.00021178,2]
[378521818,1754895033300,-293.92630998,0.00021178,2]
[378521820,1754895033309,-500.0,0.00021178,2]
[378521822,1754895033318,-500.0,0.00021178,2]
[378521824,1754895033328,-575.98793422,0.00021178,2]
[378521826,1754895033338,-500.0,0.00021178,2]
[378521828,1754895033348,-500.0,0.00021178,2]
[378521830,1754895033358,-500.0,0.00021178,2]
[378521832,1754895033368,-500.0,0.00021178,2]
[378521833,1754895033378,-500.0,0.00021178,2]
[378521834,1754895033388,-500.0,0.00021178,2]
[378521835,1754895033397,-500.0,0.00021178,2]
[378521836,1754895033408,-500.0,0.00021178,2]
[378521837,1754895033417,-500.0,0.00021178,2]
[378521838,1754895033427,-500.0,0.00021178,2]
[378521839,1754895033436,-500.0,0.00021178,2]
[378521840,1754895033446,-500.0,0.00021178,2]
[378521841,1754895033455,-500.0,0.00021178,2]
[378521842,1754895033468,-500.0,0.00021178,2]
[378521844,1754895033481,-500.0,0.00021178,2]
[378521846,1754895033492,-27.26006489,0.00021178,2]
[378521848,1754895033518,-297.81303958,0.00021178,2]
[378521893,1754895038602,-160.0,0.00021177,2]
[378521894,1754895038612,-174.92689553,0.00021178,2]
[378521895,1754895038622,-500.0,0.00021178,2]
[378521896,1754895038631,-500.0,0.00021178,2]
[378521897,1754895038640,-500.0,0.00021178,2]
[378521898,1754895038649,-500.0,0.00021178,2]
[378521899,1754895038659,-500.0,0.00021178,2]
[378521900,1754895038668,-500.0,0.00021178,2]
[378521901,1754895038677,-500.0,0.00021178,2]
[378521902,1754895038687,-500.0,0.00021178,2]
[378521903,1754895038696,-500.0,0.00021178,2]
[378521904,1754895038705,-500.0,0.00021178,2]
[378521905,1754895038714,-500.0,0.00021178,2]
[378521906,1754895038723,-500.0,0.00021178,2]
[378521907,1754895038732,-500.0,0.00021178,2]
[378521908,1754895038742,-500.0,0.00021178,2]
[378521909,1754895038752,-500.0,0.00021178,2]
[378521910,1754895038761,-500.0,0.00021178,2]
[378521911,1754895038771,-317.91439429,0.00021178,2]
[378521912,1754895038782,-500.0,0.00021178,2]
[378521913,1754895038791,-500.0,0.00021178,2]
[378521914,1754895038801,-500.0,0.00021178,2]
[378521915,1754895038810,-500.0,0.00021178,2]
[378521916,1754895038820,-290.02013618,0.00021178,2]
[378521917,1754895038829,-500.0,0.00021178,2]
[378521918,1754895038839,-500.0,0.00021178,2]
[378521919,1754895038848,-500.0,0.00021178,2]
[378521920,1754895038858,-500.0,0.00021178,2]
[378521921,1754895038867,-500.0,0.00021178,2]
[378521922,1754895038877,-500.0,0.00021178,2]
[378521923,1754895038887,-500.0,0.00021178,2]
[378521925,1754895038897,-500.0,0.00021178,2]
[378521926,1754895038918,-500.0,0.00021178,2]
[378521927,1754895038936,-500.0,0.00021178,2]
[378521928,1754895038945,-500.0,0.00021178,2]
[378521929,1754895038955,-500.0,0.00021178,2]
[378521930,1754895038964,-500.0,0.00021178,2]
[378521931,1754895038974,-500.0,0.00021178,2]
[378521932,1754895038984,-500.0,0.00021178,2]
[378521933,1754895038993,-500.0,0.00021178,2]
[378521934,1754895039002,-500.0,0.00021178,2]
[378521935,1754895039012,-500.0,0.00021178,2]
[378521936,1754895039027,-577.04164804,0.00021178,2]
[378521937,1754895039036,-500.0,0.00021178,2]
[378521938,1754895039046,-500.0,0.00021178,2]
[378521939,1754895039055,-500.0,0.00021178,2]
[378521940,1754895039066,-500.0,0.00021178,2]
[378521941,1754895039075,-500.0,0.00021178,2]
[378521942,1754895039084,-500.0,0.00021178,2]
[378521943,1754895039094,-500.0,0.00021178,2]
[378521944,1754895039104,-3051.25318391,0.00021178,2]
[378521945,1754895039114,-160.0,0.00021178,2]
[378521946,1754895039124,-215.4905783,0.00021178,2]
[378521947,1754895039135,-461.69158338,0.00021178,2]
[378521948,1754895039146,-160.0,0.00021178,2]
[378521949,1754895039162,-843.18994796,0.00021178,2]
[378521950,1754895039180,-160.0,0.00021178,2]
[378521951,1754895039192,-527.9539256,0.00021178,2]
[378521952,1754895039202,-231.9940742,0.00021178,2]
[378521953,1754895039211,-160.0,0.00021178,2]
[378521954,1754895039221,-160.0,0.00021178,2]
[378521955,1754895039230,-216.68257536,0.00021178,2]
[378521956,1754895039239,-160.0,0.00021178,2]
[378521957,1754895039249,-160.0,0.00021178,2]
[378521958,1754895039258,-417.15472785,0.00021178,2]
[378521959,1754895039268,-12671.21867243,0.00021178,2]
[378521960,1754895039278,-160.0,0.00021182,2]
[378521961,1754895039288,-160.0,0.00021186,2]
[378521962,1754895039297,-500.0,0.00021193,2]
[378521963,1754895039307,-502.12177877,0.000212,2]
[378521964,1754895039316,-186.33809383,0.000212,2]
[378521965,1754895039325,-500.0,0.00021205,2]
[378521966,1754895039335,-500.0,0.00021205,2]
[378521967,1754895039344,-512.65551404,0.00021205,2]
[378521968,1754895039354,-280.65641991,0.00021206,2]
[378521969,1754895039363,-500.0,0.00021206,2]
[378521970,1754895039373,-158.4611667,0.00021206,2]
[378521971,1754895039383,-500.0,0.00021206,2]
[378521972,1754895039392,-500.0,0.0002123,2]
[378521973,1754895039401,-500.0,0.0002123,2]
[378521974,1754895039410,-500.0,0.0002123,2]
[378521975,1754895039419,-500.0,0.00021233,2]
[378521976,1754895039428,-500.0,0.00021233,2]
[378521977,1754895039437,-500.88918197,0.00021233,2]
[378521978,1754895039447,-500.0,0.000213,2]
[378521979,1754895039456,-582.1,0.00021364,2]
[378521980,1754895039466,-1691.78250342,0.00021435,2]
[378521981,1754895039475,-200.0,0.00021601,15]
[378521982,1754895039485,-200.0,0.00021601,15]
[378521983,1754895039494,-200.0,0.00021601,15]
[378521984,1754895039504,-200.0,0.00021601,15]
[378521985,1754895039513,-200.0,0.00021601,15]
[378521986,1754895039523,-2750.80403155,0.00021655,2]
[378521987,1754895039532,-582.1,0.00021685,2]
[378521988,1754895039541,-1000.0,0.00021721,2]
[378521989,1754895039551,-240.15173798,0.00021721,2]
[378521990,1754895039560,-628.00491223,0.00021721,2]
[378521991,1754895039571,-618.4586846,0.00021721,2]
[378521992,1754895039580,-1000.0,0.00021753,2]
[378521993,1754895039589,-1000.0,0.00021754,2]
[378521995,1754895039599,-1000.0,0.00021754,2]
[378521997,1754895039608,-1000.0,0.00021778,2]
[378521998,1754895039617,-1000.0,0.00021778,2]
[378521999,1754895039627,-1000.0,0.00021781,2]
[378522000,1754895039637,-500.0,0.00021781,2]
[378522001,1754895039647,-151.0,0.000218,4]
[378522002,1754895039656,-8449.16,0.00021917,2]
[378522003,1754895039666,-471.64115263,0.00022,2]
[378522004,1754895039675,-400.0,0.00022,3]
[378522005,1754895039685,-179.0,0.00022,2]
[378522006,1754895039695,-258.0,0.00022,2]
[378522007,1754895039705,-582.1,0.00022007,2]
[378522008,1754895039714,-300.0,0.00022057,2]
[378522009,1754895039723,-151.0,0.000221,7]
[378522010,1754895039876,-258.0,0.00022192,7]
[378522011,1754895039890,-612.23277963,0.00022268,2]
[378522012,1754895039900,-294.65,0.00022286,3]